fUSD/lending_fUSD_20250223
["ID","MTS","AMOUNT","RATE_DAILY","PERIOD"]
[354166472,1740318633089,-1974.33,0.00015205,2]
[354166474,1740318633099,-300.0,0.00015205,2]
[354166476,1740318633109,-151.0,0.00015207,2]
[354166478,1740318633120,-151.0,0.00015207,2]
[354166480,1740318633129,-151.0,0.00015208,2]
[354166482,1740318633139,-151.0,0.00015208,2]
[354166483,1740318633149,-151.0,0.00015208,2]
[354166486,1740318633159,-151.0,0.00015208,2]
[354166488,1740318633168,-152.129268,0.00015208,2]
[354166490,1740318633177,-151.0,0.00015208,2]
[354166491,1740318633186,-151.774318,0.00015208,2]
[354166493,1740318633195,-151.0,0.00015208,2]
[354166495,1740318633205,-375.046476,0.00015208,2]
[354166497,1740318633214,-375.046476,0.00015208,2]
[354166499,1740318633223,-151.0,0.00015208,2]
[354166502,1740318633233,-151.0,0.00015208,2]
[354166504,1740318633243,-152.434374,0.00015208,2]
[354166505,1740318633253,-151.0,0.00015208,2]
[354166508,1740318633262,-152.434374,0.00015208,2]
[354166510,1740318633273,-154.117595,0.00015208,2]
[354166512,1740318633283,-151.0,0.00015208,2]
[354166514,1740318633293,-151.0,0.00015208,2]
[354166516,1740318633303,-658.20222,0.00015208,2]
[354166517,1740318633315,-153.679213,0.00015208,2]
[354166519,1740318633325,-151.0,0.00015209,2]
[354166521,1740318633335,-160.86128457,0.00015229,2]
[354166523,1740318633344,-150.0,0.00015231,2]
[354166525,1740318633354,-1840.79,0.00015246,2]
[354166528,1740318633364,-10365.5044965,0.0001526,3]
[354166529,1740318633373,-1840.79,0.000153,2]
[354166531,1740318633383,-156.19234524,0.00015318,2]
[354166533,1740318633393,-158.60769944,0.00015321,2]
[354166535,1740318633402,-1840.79,0.00015354,2]
[354166537,1740318633412,-2617.85312976,0.000154,2]
[354166539,1740318633421,-233.31,0.00015404,2]
[354166541,1740318633431,-1840.79,0.00015409,2]
[354166543,1740318633440,-150.0,0.00015442,2]
[354166545,1740318633450,-10365.5044965,0.00015455,3]
[354166548,1740318633460,-1840.79,0.00015463,2]
[354166550,1740318633469,-151.616755,0.00015475,2]
[354166552,1740318633481,-151.0,0.00015475,2]
[354166554,1740318633491,-151.0,0.00015475,2]
[354166555,1740318633501,-151.0,0.00015475,2]
[354166558,1740318633510,-151.0,0.00015475,2]
[354166559,1740318633521,-151.0,0.00015475,2]
[354166561,1740318633531,-151.0,0.00015475,2]
[354166563,1740318633540,-151.0,0.00015475,2]
[354166565,1740318633549,-151.0,0.00015475,2]
[354166567,1740318633559,-151.0,0.00015475,2]
[354166569,1740318633570,-151.0,0.00015475,2]
[354166572,1740318633580,-151.0,0.00015475,2]
[354166574,1740318633589,-151.0,0.00015475,2]
[354166575,1740318633599,-151.0,0.00015475,2]
[354166577,1740318633608,-195.8746,0.00015475,2]
[354166580,1740318633618,-195.8746,0.00015475,2]
[354166581,1740318633627,-151.0,0.00015475,2]
[354166584,1740318633638,-151.0,0.00015475,2]
[354166586,1740318633647,-186.769486,0.00015475,2]
[354166588,1740318633656,-186.769486,0.00015475,2]
[354166589,1740318633666,-350.270036,0.00015475,2]
[354166591,1740318633675,-350.270036,0.00015475,2]
[354166593,1740318633684,-10365.5044965,0.00015505,3]
[354166596,1740318633694,-202.18,0.00015516,2]
[354166598,1740318633703,-1840.79,0.00015517,2]
[354166600,1740318633712,-156.19234524,0.00015554,2]
[354166602,1740318633722,-169.33,0.00015558,2]
[354166603,1740318633731,-10365.5044965,0.00015561,3]
[354166605,1740318633740,-150.0,0.00015565,2]
[354166607,1740318633750,-1840.79,0.00015571,2]
[354166610,1740318633760,-1000.0,0.00015598,2]
[354166611,1740318633768,-1782.0,0.000156,2]
[354166613,1740318633777,-1840.79,0.00015625,2]
[354166615,1740318633787,-1840.79,0.00015679,2]
[354166617,1740318633797,-151.0,0.00015696,2]
[354166620,1740318633806,-10365.5044965,0.00015696,3]
[354166622,1740318633817,-151.0,0.00015706,2]
[354166624,1740318633826,-151.0,0.00015706,2]
[354166626,1740318633835,-151.0,0.00015706,2]
[354166627,1740318633845,-151.0,0.00015706,2]
[354166629,1740318633854,-150.0,0.00015717,2]
[354166631,1740318633863,-1840.79,0.00015734,2]
[354166633,1740318633872,-156.19234524,0.00015791,2]
[354166635,1740318633882,-151.0,0.00015806,2]
[354166637,1740318633892,-151.0,0.00015806,2]
[354166639,1740318633901,-151.0,0.00015806,2]
[354166641,1740318633911,-658.20222,0.00015806,2]
[354166643,1740318633921,-151.0,0.00015806,2]
[354166645,1740318633930,-10365.5044965,0.00015807,3]
[354166647,1740318633939,-151.0,0.00015817,2]
[354166649,1740318633948,-375.046476,0.00015827,2]
[354166651,1740318633959,-375.046476,0.00015827,2]
[354166653,1740318633968,-151.0,0.00015827,2]
[354166655,1740318633978,-152.434374,0.00015827,2]
[354166657,1740318633987,-151.0,0.00015827,2]
[354166659,1740318633996,-152.434374,0.00015827,2]
[354166661,1740318634005,-151.0,0.00015827,2]
[354166662,1740318634013,-151.0,0.00015827,2]
[354166664,1740318634023,-151.0,0.00015827,2]
[354166666,1740318634032,-231.555127,0.00015827,2]
[354166668,1740318634041,-158.60769944,0.00015834,2]
[354166670,1740318634050,-10365.5044965,0.00015843,3]
[354166672,1740318634059,-151.0,0.00015853,2]
[354166674,1740318634069,-272.216596,0.00015853,2]
[354166676,1740318634078,-272.216596,0.00015853,2]
[354166678,1740318634087,-411.670038,0.00015853,2]
[354166680,1740318634096,-411.670038,0.00015853,2]
[354166683,1740318634111,-151.0,0.00015853,2]
[354166685,1740318634126,-150.0,0.00015856,2]
[354166687,1740318634136,-10365.5044965,0.00015864,3]
[354166689,1740318634145,-151.0,0.00015864,2]
[354166691,1740318634156,-225.132586,0.00015864,2]
[354166694,1740318634166,-225.132586,0.00015864,2]
[354166696,1740318634176,-999.0,0.00015874,2]
[354166698,1740318634185,-10365.5044965,0.00015874,3]
[354166700,1740318634195,-151.0,0.00015874,2]
[354166702,1740318634205,-151.0,0.00015874,2]
[354166704,1740318634215,-151.0,0.00015874,2]
[354166706,1740318634224,-151.0,0.00015874,2]
[354166708,1740318634234,-151.0,0.00015874,2]
[354166710,1740318634244,-151.0,0.00015874,2]
[354166712,1740318634254,-151.0,0.00015874,2]
[354166714,1740318634263,-151.0,0.00015874,2]
[354166716,1740318634273,-151.0,0.00015874,2]
[354166718,1740318634282,-151.0,0.00015874,2]
[354166720,1740318634292,-227.560188,0.00015874,2]
[354166722,1740318634301,-151.0,0.00015874,2]
[354166724,1740318634311,-195.8746,0.00015874,2]
[354166726,1740318634321,-195.8746,0.00015874,2]
[354166728,1740318634331,-152.848446,0.00015874,2]
[354166730,1740318634340,-151.0,0.00015874,2]
[354166732,1740318634349,-186.769486,0.00015874,2]
[354166734,1740318634358,-186.769486,0.00015874,2]
[354166736,1740318634368,-350.270036,0.00015874,2]
[354166738,1740318634377,-350.270036,0.00015874,2]
[354166740,1740318634386,-24066.41625339,0.00015884,2]
[354166742,1740318634396,-2617.85312976,0.000159,2]
[354166744,1740318634406,-151.0,0.00015917,2]
[354166746,1740318634415,-151.0,0.00015917,2]
[354166748,1740318634425,-151.0,0.00015917,2]
[354166750,1740318634435,-151.0,0.00015917,2]
[354166752,1740318634444,-151.0,0.00015917,2]
[354166754,1740318634454,-151.0,0.00015917,2]
[354166756,1740318634464,-151.0,0.00015926,2]
[354166758,1740318634475,-151.0,0.00015926,2]
[354166760,1740318634485,-258.482244,0.00015926,2]
[354166762,1740318634495,-151.0,0.00015927,2]
[354166764,1740318634504,-151.0,0.00015927,2]
[354166766,1740318634515,-10365.5044965,0.0001598,3]
[354166767,1740318634524,-15761.1704955,0.0001598,3]
[354166768,1740318634534,-10365.5044965,0.00015997,3]
[354166769,1740318634543,-500.0,0.00016,2]
[354166770,1740318634553,-5551.0,0.00016,5]
[354166771,1740318634565,-151.0,0.00016007,2]
[354166772,1740318634575,-151.0,0.00016007,2]
[354166773,1740318634584,-151.0,0.00016007,2]
[354166774,1740318634593,-151.0,0.00016007,2]
[354166775,1740318634603,-151.0,0.00016007,2]
[354166776,1740318634612,-151.0,0.00016007,2]
[354166777,1740318634622,-184.279084,0.00016007,2]
[354166778,1740318634635,-151.0,0.00016007,2]
[354166779,1740318634644,-375.046476,0.00016007,2]
[354166780,1740318634654,-375.046476,0.00016007,2]
[354166781,1740318634664,-151.0,0.00016007,2]
[354166782,1740318634673,-151.0,0.00016007,2]
[354166783,1740318634682,-152.434374,0.00016007,2]
[354166784,1740318634692,-152.434374,0.00016007,2]
[354166785,1740318634702,-151.0,0.00016007,2]
[354166786,1740318634712,-184.386841,0.00016007,2]
[354166787,1740318634721,-658.20222,0.00016007,2]
[354166788,1740318634731,-151.0,0.00016007,2]
[354166789,1740318634740,-249.712014,0.00016007,2]
[354166790,1740318634749,-225.132586,0.00016007,2]
[354166791,1740318634759,-225.132586,0.00016007,2]
[354166792,1740318634768,-150.0,0.00016007,2]
[354166793,1740318634777,-151.0,0.00016017,2]
[354166794,1740318634787,-151.0,0.00016017,2]
[354166795,1740318634796,-151.0,0.00016017,2]
[354166796,1740318634805,-151.0,0.00016017,2]
[354166797,1740318634815,-151.0,0.00016017,2]
[354166798,1740318634824,-272.216596,0.00016017,2]
[354166799,1740318634834,-272.216596,0.00016017,2]
[354166800,1740318634843,-411.670038,0.00016017,2]
[354166801,1740318634852,-411.670038,0.00016017,2]
[354166802,1740318634861,-151.0,0.00016017,2]
[354166803,1740318634871,-150.0,0.00016026,2]
[354166804,1740318634880,-151.0,0.00016027,2]
[354166805,1740318634890,-300.0,0.00016027,2]
[354166806,1740318634899,-439.38,0.00016027,2]
[354166807,1740318634908,-150.0,0.00016029,2]
[354166808,1740318634918,-254.39978366,0.00016086,2]
[354166809,1740318634927,-10365.5044965,0.0001609,3]
[354166810,1740318634937,-15761.1704955,0.0001609,3]
[354166811,1740318634947,-748.0,0.000161,2]
[354166812,1740318634957,-925.0,0.000161,2]
[354166813,1740318634969,-980.2,0.000161,2]
[354166814,1740318634979,-150.0,0.00016138,2]
[354166815,1740318634989,-151.0,0.00016173,2]
[354166816,1740318634998,-151.0,0.00016173,2]
[354166817,1740318635007,-151.0,0.00016173,2]
[354166818,1740318635017,-151.0,0.00016173,2]
[354166819,1740318635026,-151.0,0.00016173,2]
[354166820,1740318635035,-151.0,0.00016173,2]
[354166821,1740318635045,-151.0,0.00016173,2]
[354166822,1740318635055,-151.0,0.00016173,2]
[354166823,1740318635065,-151.0,0.00016173,2]
[354166824,1740318635075,-151.0,0.00016173,2]
[354166825,1740318635084,-151.0,0.00016173,2]
[354166826,1740318635093,-195.8746,0.00016173,2]
[354166827,1740318635103,-195.8746,0.00016173,2]
[354166828,1740318635112,-151.0,0.00016173,2]
[354166829,1740318635123,-186.769486,0.00016173,2]
[354166830,1740318635132,-186.769486,0.00016173,2]
[354166831,1740318635141,-350.270036,0.00016173,2]
[354166832,1740318635151,-350.270036,0.00016173,2]
[354166833,1740318635162,-151.0,0.00016193,2]
[354166834,1740318635171,-150.0,0.00016194,2]
[354166835,1740318635181,-305.57979002,0.00016205,2]
[354166836,1740318635190,-150.0,0.00016212,2]
[354166837,1740318635199,-150.0,0.00016212,2]
[354166838,1740318635209,-150.0,0.00016241,2]
[354166839,1740318635218,-10365.5044965,0.00016295,3]
[354166840,1740318635227,-15761.1704955,0.00016295,3]
[354166841,1740318635237,-150.0,0.00016295,2]
[354166842,1740318635246,-150.0,0.00016323,2]
[354166843,1740318635255,-158.60769944,0.00016347,2]
[354166844,1740318635265,-10365.5044965,0.00016372,3]
[354166845,1740318635274,-150.0,0.00016378,2]
[354166846,1740318635284,-151.0,0.00016385,2]
[354166847,1740318635294,-151.0,0.00016385,2]
[354166848,1740318635303,-196.572836,0.00016385,2]
[354166849,1740318635316,-151.0,0.00016385,2]
[354166850,1740318635326,-151.0,0.00016385,2]
[354166851,1740318635336,-151.0,0.00016385,2]
[354166852,1740318635345,-10365.5044965,0.0001639,3]
[354166853,1740318635355,-15761.1704955,0.0001639,3]
[354166854,1740318635364,-150.0,0.00016392,2]
[354166855,1740318635374,-151.0,0.00016399,2]
[354166856,1740318635384,-151.0,0.00016399,2]
[354166857,1740318635394,-151.0,0.00016399,2]
[354166858,1740318635404,-2617.85312976,0.000164,2]
[354166859,1740318635414,-151.0,0.00016404,2]
[354166860,1740318635423,-225.132586,0.00016404,2]
[354166861,1740318635432,-225.132586,0.00016404,2]
[354166862,1740318635442,-151.0,0.00016412,2]
[354166863,1740318635451,-150.0,0.00016482,2]
[354166864,1740318635460,-150.0,0.00016512,2]
[354166865,1740318635469,-40000.000001,0.0001652,3]
[354166866,1740318635482,-568.45,0.00016579,2]
[354166867,1740318635491,-150.0,0.00016588,2]
[354166868,1740318635501,-10365.5044965,0.00016594,3]
[354166869,1740318635511,-150.0,0.00016644,2]
[354166870,1740318635520,-150.0,0.00016644,2]
[354166871,1740318635530,-151.08076048,0.00016644,2]
[354166872,1740318635539,-150.0,0.00016644,2]
[354166873,1740318635549,-150.0,0.00016644,2]
[354166874,1740318635560,-151.0,0.00016644,2]
[354166875,1740318635570,-1301.23,0.00016687,2]
[354166876,1740318635579,-298.59493,0.00016688,7]
[354166877,1740318635588,-151.0,0.000167,2]
[354166878,1740318635597,-900.0,0.000167,6]
[354166879,1740318635606,-150.0,0.00016707,2]
[354166880,1740318635616,-150.0,0.00016747,2]
[354166881,1740318635625,-15761.1704955,0.00016749,3]
[354166882,1740318635634,-10365.5044965,0.00016758,3]
[354166883,1740318635643,-151.0,0.00016759,2]
[354166884,1740318635653,-272.216596,0.00016759,2]
[354166885,1740318635662,-272.216596,0.00016759,2]
[354166886,1740318635673,-411.670038,0.00016759,2]
[354166887,1740318635684,-411.670038,0.00016759,2]
[354166888,1740318635694,-151.159582,0.00016759,2]
[354166889,1740318635705,-10365.5044965,0.00016768,3]
[354166890,1740318635714,-15761.1704955,0.00016768,3]
[354166891,1740318635723,-10365.5044965,0.00016768,3]
[354166892,1740318635733,-165.21195622,0.00016773,2]
[354166893,1740318635743,-31096.5134896,0.00016777,3]
[354166894,1740318635752,-47283.5114864,0.00016777,3]
[354166895,1740318635761,-151.0,0.00016778,2]
[354166896,1740318635770,-375.046476,0.00016778,2]
[354166897,1740318635781,-375.046476,0.00016778,2]
[354166898,1740318635791,-151.0,0.00016778,2]
[354166899,1740318635801,-151.0,0.00016778,2]
[354166900,1740318635810,-152.434374,0.00016778,2]
[354166901,1740318635820,-152.434374,0.00016778,2]
[354166902,1740318635830,-151.0,0.00016778,2]
[354166903,1740318635840,-658.20222,0.00016778,2]
[354166904,1740318635849,-151.0,0.00016778,2]
[354166905,1740318635859,-151.0,0.00016778,2]
[354166906,1740318635868,-151.0,0.00016778,2]
[354166907,1740318635877,-151.0,0.00016778,2]
[354166908,1740318635887,-151.0,0.00016778,2]
[354166909,1740318635897,-262.948743,0.00016778,2]
[354166910,1740318635907,-151.0,0.00016778,2]
[354166911,1740318635918,-151.0,0.00016778,2]
[354166912,1740318635927,-151.0,0.00016778,2]
[354166913,1740318635937,-209.713875,0.00016778,2]
[354166914,1740318635946,-151.0,0.00016778,2]
[354166915,1740318635956,-195.8746,0.00016778,2]
[354166916,1740318635965,-195.8746,0.00016778,2]
[354166917,1740318635975,-151.0,0.00016778,2]
[354166918,1740318635983,-186.769486,0.00016778,2]
[354166919,1740318636197,-186.769486,0.00016778,2]
[354166920,1740318636206,-151.0,0.00016778,2]
[354166921,1740318636216,-350.270036,0.00016778,2]
[354166922,1740318636225,-350.270036,0.00016778,2]
[354166923,1740318636235,-151.0,0.00016778,2]
[354166924,1740318636244,-151.0,0.00016778,2]
[354166925,1740318636254,-151.0,0.00016778,2]
[354166926,1740318636264,-15761.1704955,0.00016778,3]
[354166927,1740318636273,-15761.1704955,0.00016785,3]
[354166928,1740318636283,-272.216596,0.00016787,2]
[354166929,1740318636292,-272.216596,0.00016787,2]
[354166930,1740318636302,-411.670038,0.00016787,2]
[354166931,1740318636311,-274.874151,0.00016787,2]
[354166932,1740318636321,-411.670038,0.00016787,2]
[354166933,1740318636330,-151.0,0.00016787,2]
[354166934,1740318636339,-151.0,0.00016787,2]
[354166935,1740318636349,-151.0,0.00016787,2]
[354166936,1740318636358,-2027.0,0.00016788,2]
[354166937,1740318636368,-1274.0,0.00016788,2]
[354166938,1740318636377,-639.0,0.00016788,2]
[354166939,1740318636386,-151.1,0.00016788,2]
[354166940,1740318636396,-569.0,0.00016788,2]
[354166941,1740318636405,-1788.0,0.00016788,2]
[354166942,1740318636414,-907.0,0.00016788,2]
[354166943,1740318636423,-1430.537,0.00016788,2]
[354166944,1740318636433,-784.0,0.00016788,2]
[354166945,1740318636442,-1267.0,0.00016788,2]
[354166946,1740318636451,-662.394,0.00016788,2]
[354166947,1740318636461,-4032.0,0.00016788,2]
[354166948,1740318636470,-150.0,0.00016788,2]
[354166949,1740318636481,-289.663,0.00016788,2]
[354166950,1740318636492,-1151.0,0.00016788,2]
[354166951,1740318636500,-151.0,0.0001679,2]
[354166952,1740318636509,-15761.1704955,0.0001679,3]
[354166953,1740318636518,-20782.25373911,0.00016795,2]
[354166954,1740318636528,-151.0,0.00016798,2]
[354166955,1740318636537,-151.0,0.00016798,2]
[354166956,1740318636546,-225.132586,0.00016798,2]
[354166957,1740318636555,-225.132586,0.00016798,2]
[354166958,1740318636566,-225.132586,0.00016798,2]
[354166959,1740318636575,-225.132586,0.00016798,2]
[354166960,1740318636584,-279.134024,0.00016798,2]
[354166961,1740318636593,-151.0,0.00016798,2]
[354166962,1740318636606,-151.0,0.00016798,2]
[354166963,1740318636615,-151.0,0.00016798,2]
[354166964,1740318636624,-151.0,0.00016798,2]
[354166965,1740318636633,-248.75075,0.00016798,2]
[354166966,1740318636642,-151.0,0.00016798,2]
[354166967,1740318636653,-153.449733,0.00016798,2]
[354166968,1740318636662,-251.331954,0.00016798,2]
[354166969,1740318636671,-151.0,0.00016798,2]
[354166970,1740318636679,-151.0,0.00016798,2]
[354166971,1740318636688,-151.0,0.00016798,2]
[354166972,1740318636697,-151.0,0.00016798,2]
[354166973,1740318636706,-151.0,0.00016798,2]
[354166974,1740318636715,-195.8746,0.00016798,2]
[354166975,1740318636725,-195.8746,0.00016798,2]
[354166976,1740318636734,-195.8746,0.00016798,2]
[354166977,1740318636744,-195.8746,0.00016798,2]
[354166978,1740318636754,-186.769486,0.00016798,2]
[354166979,1740318636763,-186.769486,0.00016798,2]
[354166980,1740318636773,-186.769486,0.00016798,2]
[354166981,1740318636782,-186.769486,0.00016798,2]
[354166982,1740318636791,-350.270036,0.00016798,2]
[354166983,1740318636801,-350.270036,0.00016798,2]
[354166984,1740318636810,-350.270036,0.00016798,2]
[354166985,1740318636820,-350.270036,0.00016798,2]
[354166986,1740318636829,-151.0,0.00016799,2]
[354166987,1740318636839,-1531.67780908,0.000168,2]
[354166988,1740318636848,-266.66672,0.000168,2]
[354166989,1740318636857,-246.92387707,0.000168,2]
[354166990,1740318636866,-1800.0,0.000168,6]
[354166991,1740318636875,-171.28771476,0.00016805,2]
[354166992,1740318636884,-151.0,0.00016807,2]
[354166993,1740318636894,-375.046476,0.00016807,2]
[354166994,1740318636903,-375.046476,0.00016807,2]
[354166995,1740318636912,-151.0,0.00016807,2]
[354166996,1740318636921,-151.0,0.00016807,2]
[354166997,1740318636933,-152.434374,0.00016807,2]
[354166998,1740318636942,-152.434374,0.00016807,2]
[354166999,1740318636951,-159.588424,0.00016807,2]
[354167000,1740318636960,-658.20222,0.00016807,2]
[354167001,1740318636969,-150.0,0.00016812,2]
[354167002,1740318636978,-150.0,0.00016817,2]
[354167003,1740318636988,-151.0,0.00016819,2]
[354167004,1740318636997,-151.0,0.00016819,2]
[354167005,1740318637007,-151.0,0.00016819,2]
[354167006,1740318637016,-272.216596,0.00016819,2]
[354167007,1740318637025,-272.216596,0.00016819,2]
[354167008,1740318637034,-411.670038,0.00016819,2]
[354167009,1740318637044,-411.670038,0.00016819,2]
[354167010,1740318637053,-151.0,0.00016828,2]
[354167011,1740318637064,-151.0,0.00016828,2]
[354167012,1740318637073,-151.0,0.00016828,2]
[354167013,1740318637083,-151.0,0.00016828,2]
[354167014,1740318637092,-151.414743,0.00016828,2]
[354167015,1740318637101,-151.0,0.00016829,2]
[354167016,1740318637111,-151.0,0.00016829,2]
[354167017,1740318637120,-151.0,0.00016829,2]
[354167018,1740318637129,-213.06,0.00016846,2]
[354167019,1740318637138,-151.0,0.00016849,2]
[354167020,1740318637147,-150.0,0.00016849,2]
[354167021,1740318637157,-150.0,0.00016849,2]
[354167022,1740318637166,-151.0,0.0001685,2]
[354167023,1740318637176,-158.60769944,0.00016861,2]
[354167024,1740318637185,-513.95419366,0.00016885,2]
[354167025,1740318637195,-15761.1704955,0.00016885,3]
[354167026,1740318637203,-298.59493,0.00016888,7]
[354167027,1740318637213,-15761.1704955,0.00016893,3]
[354167028,1740318637222,-300.0,0.00016894,2]
[354167029,1740318637231,-300.0,0.00016894,2]
[354167030,1740318637240,-300.0,0.00016894,2]
[354167031,1740318637249,-151.0,0.00016894,2]
[354167032,1740318637258,-151.0,0.00016894,2]
[354167033,1740318637267,-300.0,0.00016894,2]
[354167034,1740318637276,-300.0,0.00016894,2]
[354167035,1740318637285,-203.34505927,0.00016894,5]
[354167036,1740318637298,-31522.3409909,0.00016895,3]
[354167037,1740318637307,-151.0,0.00016895,2]
[354167038,1740318637317,-225.132586,0.00016895,2]
[354167039,1740318637326,-225.132586,0.00016895,2]
[354167040,1740318637335,-151.0,0.00016895,2]
[354167041,1740318637344,-151.0,0.00016895,2]
[354167042,1740318637353,-151.0,0.00016895,2]
[354167043,1740318637363,-151.0,0.00016895,2]
[354167044,1740318637372,-195.8746,0.00016895,2]
[354167045,1740318637381,-195.8746,0.00016895,2]
[354167046,1740318637397,-186.769486,0.00016895,2]
[354167047,1740318637406,-186.769486,0.00016895,2]
[354167048,1740318637415,-350.270036,0.00016895,2]
[354167049,1740318637424,-350.270036,0.00016895,2]
[354167050,1740318637433,-151.0,0.00016895,2]
[354167051,1740318637443,-2700.0,0.000169,6]
[354167052,1740318637452,-3014.0,0.000169,3]
[354167053,1740318637461,-2617.85312976,0.000169,2]
[354167054,1740318637472,-300.0,0.00016902,2]
[354167055,1740318637484,-300.0,0.00016902,2]
[354167056,1740318637494,-10377.92727012,0.00016903,2]
[354167057,1740318637503,-303.25873878,0.00016904,2]
[354167058,1740318637514,-300.0,0.00016904,2]
[354167059,1740318637524,-515296.54168832,0.00016905,5]
[354167060,1740318637545,-251667.62927367,0.00016905,5]
[354167061,1740318637556,-2201.57792837,0.00016905,5]
[354167062,1740318637568,-500.56005864,0.00016905,5]
[354167063,1740318637579,-68943.57748205,0.00016905,5]
[354167064,1740318637612,-500.0,0.00015258,2]
[354167065,1740318637621,-500.0,0.00015258,2]
[354167066,1740318637631,-500.0,0.00015258,2]
[354167067,1740318637640,-1276.99449996,0.00016905,5]
[354167068,1740318637651,-4183.5135596,0.00016905,5]
[354167084,1740318638008,-500.55404404,0.00015258,2]
[354167085,1740318638017,-500.0,0.00015258,2]
[354167086,1740318638026,-369.16025996,0.00015258,2]
[354167087,1740318638037,-130.83974004,0.00015258,2]
[354167088,1740318638046,-281.69060875,0.00015258,2]
[354167090,1740318638055,-500.0,0.00015258,2]
[354167092,1740318638064,-500.0,0.00015258,2]
[354167094,1740318638073,-173.35091462,0.00015258,2]
[354167096,1740318638083,-500.0,0.00015258,2]
[354167098,1740318638093,-500.0,0.00015258,2]
[354167100,1740318638102,-500.0,0.00015258,2]
[354167101,1740318638111,-500.0,0.00015258,2]
[354167103,1740318638119,-500.0,0.00015258,2]
[354167104,1740318638128,-500.0,0.00015258,2]
[354167106,1740318638137,-500.0,0.00015258,2]
[354167108,1740318638146,-500.0,0.00015258,2]
[354167110,1740318638156,-101.75564117,0.00015258,2]
[354167112,1740318638167,-398.24435883,0.00015258,2]
[354167114,1740318638176,-500.0,0.00015258,2]
[354167116,1740318638185,-500.0,0.00015258,2]
[354167118,1740318638194,-500.0,0.00015258,2]
[354167120,1740318638204,-500.0,0.00015258,2]
[354167122,1740318638213,-170.56951467,0.00015258,2]
[354167123,1740318638223,-500.0,0.00015258,2]
[354167125,1740318638232,-500.0,0.00015258,2]
[354167127,1740318638241,-500.0,0.00015258,2]
[354167129,1740318638250,-500.0,0.00015258,2]
[354167131,1740318638259,-500.0,0.00015258,2]
[354167133,1740318638269,-500.0,0.00015258,2]
[354167135,1740318638278,-500.0,0.00015258,2]
[354167137,1740318638288,-500.0,0.00015258,2]
[354167139,1740318638298,-197.927833,0.00015696,2]
[354167141,1740318638307,-156.19234524,0.00016027,2]
[354167143,1740318638317,-3920.0,0.00016788,2]
[354167145,1740318638326,-150.0,0.00016788,2]
[354167147,1740318638335,-190802.50127875,0.00016905,5]
[354167149,1740318638347,-7255.39171801,0.00016905,5]
[354167151,1740318638359,-3698.29222277,0.00016905,5]
[354167154,1740318638370,-1024.26732865,0.00016905,5]
[354167156,1740318638381,-865.68892614,0.00016905,5]
[354167158,1740318638392,-357.24622518,0.00016905,5]
[354167254,1740318639820,-800.6046,0.00015475,2]
[354167255,1740318639933,-564.49200866,0.00015475,2]
[354167256,1740318639944,-285.27481991,0.00015475,2]
[354167257,1740318639954,-900.0,0.00016904,2]
[354167258,1740318639963,-44407.75806646,0.00016905,5]
[354167259,1740318639972,-151.0,0.00016905,2]
[354167260,1740318639982,-151.0,0.00016905,2]
[354167261,1740318639991,-151.0,0.00016905,2]
[354167262,1740318640000,-1983.17111364,0.00016905,14]